Cogmind - Beta 13 @@@ ROGUE MODE // 2024.06.10 @ 02:17:08 Player: Rune Result: Destroyed by Y-45 Defender with Heavy Assault Rifle Performance ------------- Evolutions (1) 500 Regions Visited (2) 400 Robots Destroyed (20) 100 Value Destroyed (420) 420 Prototype IDs (0) 0 Alien Tech Used (0) 0 Bonus (0) 0 TOTAL SCORE: 1420 Bonus ------- None Cogmind --------- Core Integrity 0/400 Matter 300/300 Energy 100/100 System Corruption 9% Temperature Cool (9) Movement Core (200) Ox3 Location -9/Materials Parts ------- > --- POWER (1) -------- (None) > --- PROPULSION (2) --- (None) > --- UTILITY (3) ------ Medium Storage Unit > --- WEAPON (3) ------- (None) > --- INVENTORY (10) --- Heat Sink Signal Interpreter Core Shielding Improved Weapon Shielding Light Armor Plating Reflective Plating High-powered Tractor Beam Peak State ------------ > --- POWER ------------ Ion Engine > --- PROPULSION ------- Carbon-fiber Leg Carbon-fiber Leg > --- UTILITY ---------- Medium Storage Unit Sensor Array Targeting Computer > --- WEAPON ----------- EM Pulse Gun Light Assault Rifle EMP Blaster > --- INVENTORY -------- Signal Interpreter Core Shielding Improved Weapon Shielding Light Armor Plating Reflective Plating High-powered Tractor Beam Hammer [Rating: 15] Favorites ----------- Power Light Ion Engine Engine Light Ion Engine Propulsion Aluminum Leg Leg Aluminum Leg Utility Targeting Computer Device Sensor Array Storage Medium Storage Unit Processor Targeting Computer Weapon Light Assault Rifle Energy Gun EM Pulse Gun Ballistic Gun Light Assault Rifle Launcher EMP Blaster Impact Weapon Hammer Build | -11 -10 -9 ------- Run | Yrd Mat Mat Slots Evolved 2 | . . 2 Power . | . . . Propulsion . | . . . Utility 1 | . . 1 Weapon 1 | . . 1 Parts Attached 21 | 6 8 7 Power 5 | 1 2 2 Engine 5 | 1 2 2 Core . | . . . Reactor . | . . . Propulsion 7 | 2 3 2 Treads . | . . . Leg 7 | 2 3 2 Wheel . | . . . Hover . | . . . Flight . | . . . Utility 4 | 1 2 1 Device 1 | . . 1 Storage 2 | 1 1 . Processor 1 | . 1 . Hackware . | . . . Protection . | . . . Artifact . | . . . Weapon 5 | 2 1 2 Energy Gun 1 | 1 . . Energy Cannon . | . . . Ballistic Gun 2 | 1 1 . Ballistic Cannon . | . . . Launcher 1 | . . 1 Special Weapon . | . . . Impact Weapon 1 | . . 1 Slashing Weapon . | . . . Piercing Weapon . | . . . Special Melee Weapon . | . . . Unidentified Prototypes . | . . . Parts Lost 10 | . . 10 Power 2 | . . 2 Propulsion 2 | . . 2 Utility 2 | . . 2 Weapon 4 | . . 4 Highest Loss Streak 7 | . . 7 To Critical Strikes 2 | . . 2 Average Slot Usage (%) 93 | . 93 94 Engine 11 | . 13 8 Leg 24 | . 27 21 Device 4 | . . 10 Storage 12 | . 14 11 Processor 9 | . 8 10 Energy Gun 10 | . 14 6 Ballistic Gun 12 | . 14 10 Launcher 4 | . . 10 Impact Weapon 1 | . . 3 Naked Turns . | . . . Heaviest Build 23 | 11 16 23 Greatest Support 30 | 20 20 30 Greatest Overweight (x) 3 | 1 1 3 Average Overweight (x) . | . . . Largest Inventory Capacity 10 | 8 10 10 Average Capacity 9 | 7 9 10 Most Carried 10 | 5 10 9 Average Carried 5 | 2 3 6 Final Capacity 10 | 8 10 10 Final Carried 10 | 1 10 7 Class Distribution -------------------- 72% | Mutant 27% | Gunner Dominant Class ---------------- Mutant | -10/Materials Gunner | -9/Materials Resources | -11 -10 -9 ----------- Run | Yrd Mat Mat Matter Collected 464 | 221 96 147 Remotely . | . . . Salvage Created 661 | . 227 434 Parts 42 | . 11 31 Haulers Intercepted . | . . . Recyclers Shooed 1 | . . 1 Parts Field Recycled . | . . . Retrieved Matter . | . . . Parts Self-Destructed . | . . . Prevented . | . . . Kills | -11 -10 -9 ------- Run | Yrd Mat Mat Combat Hostiles Destroyed 13 | . 4 9 Guns 7 | . 4 3 AOE 6 | . . 6 Classes Destroyed 6 | . 4 2 Builder 2 | . . 2 Recycler 2 | . 1 1 Watcher 3 | . 1 2 Swarmer 6 | . 2 4 Grunt 5 | . 2 3 Sentry 2 | . . 2 Best Kill Streak 8 | . 2 8 Combat Bots Only 5 | . 2 5 Max Kills in Single Turn 4 | . 1 4 Gunslinging . | . . . Exploded 4 | . . 4 Melee . | . . . Uniques/NPCs Destroyed . | . . . Combat | -11 -10 -9 -------- Run | Yrd Mat Mat Hostile Shots Fired 122 | . 35 87 Missed 31 | . 6 25 Damage Taken 1401 | . 330 1071 Core 462 | . 62 400 Absorbed by Shields . | . . . Core Remaining (%) 87 | 100 75 . Volleys Fired 33 | . 24 9 Largest 3 | . 2 3 Hottest 93 | . 60 93 Shots Fired 67 | . 48 19 Gun 58 | . 48 10 Cannon . | . . . Launcher 9 | . . 9 Special . | . . . Kinetic 33 | . 24 9 Thermal . | . . . Explosive . | . . . Electromagnetic 34 | . 24 10 Robot Hit Streak 4 | . 4 3 Robot Miss Streak 8 | . 8 2 Penetration Max . | . . . Secondary Targets . | . . . Shots Hit Robots 37 | . 23 14 Core Hits 31 | . 10 21 Critical Kills . | . . . Critical Parts Destroyed . | . . . Critical Strikes . | . . . Melee Attacks 8 | . . 8 Impact 8 | . . 8 Slashing . | . . . Piercing . | . . . Sneak Attacks 1 | . . 1 Combat Hostiles . | . . . Follow-up Attacks . | . . . Damage Inflicted 1095 | . 336 759 Guns 378 | . 314 64 Cannons . | . . . Explosions 607 | . 22 585 Melee 110 | . . 110 Ramming . | . . . Kinetic 162 | . 108 54 Thermal 308 | . 22 286 Explosive . | . . . Electromagnetic 515 | . 206 309 Impact 110 | . . 110 Slashing . | . . . Piercing . | . . . Highest Corruption 9 | . . 9 Average Corruption 4 | . . 4 Corruption Purged . | . . . Corruption Blocked . | . . . Effects 1 | . . 1 Data Loss (major) 1 | . . 1 Overload Shots . | . . . Overflow Damage 53 | . . 53 Projectiles . | . . . Explosions 53 | . . 53 Melee . | . . . Knockbacks . | . . . Impact . | . . . Kinetic . | . . . Secondary . | . . . Self-Inflicted Damage 189 | . 39 150 Shots 5 | . 1 4 Rammed . | . . . Targets Rammed . | . . . Kicked . | . . . Crushed . | . . . Highest Temperature 88 | . 88 55 Average Temperature 28 | . 31 18 Received Heat Transfer 300 | . 72 228 Siege Activations . | . . . Robots Corrupted . | . . . Combat Hostiles . | . . . Parts Fried 1 | . . 1 Impact Corruptions . | . . . Robots Melted . | . . . Combat Hostiles . | . . . Parts Melted 1 | . . 1 Heat Transferred 300 | . 50 250 Parts Sabotaged . | . . . Parts Stolen . | . . . Parts Stripped . | . . . Power Chain Reactions 5 | . 1 4 Alert | -11 -10 -9 ------- Run | Yrd Mat Mat Peak Influence 209 | . 156 209 Initial 21 | . . 21 Average 60 | . 56 73 Maximum Alert Level 1 | . . 1 Low Security (%) 92 | 100 100 82 Level 1 7 | . . 17 Level 2 . | . . . Level 3 . | . . . Level 4 . | . . . Level 5 . | . . . High Security . | . . . Max Security . | . . . Squads Dispatched 2 | . 1 1 Investigation 1 | . 1 . Extermination . | . . . Reinforcement 1 | . . 1 Assault . | . . . Garrison . | . . . Intercept . | . . . Searches Triggered . | . . . Construction Impeded 1 | . . 1 Haulers Reinforced . | . . . Active Scanning Responses . | . . . Cargo Convoy Interrupts . | . . . Stealth | -11 -10 -9 --------- Run | Yrd Mat Mat Distress Signals 1 | . . 1 Communications Jammed . | . . . Distress Signals . | . . . Times Spotted 29 | . 13 16 Peak Tracking Total 5 | . 4 5 Tactical Retreats . | . . . Traps | -11 -10 -9 ------- Run | Yrd Mat Mat Traps Triggered 2 | . 2 . Indirectly . | . . . Trap Hack Attempts . | . . . Triggered . | . . . Disarmed . | . . . Reprogrammed . | . . . Reused . | . . . Traps Extracted . | . . . Installed . | . . . Triggered . | . . . Machines | -11 -10 -9 ---------- Run | Yrd Mat Mat Machines Disabled 3 | . 1 2 Max in Single Turn 2 | . 1 2 Machines Repaired . | . . . Machines Dismantled . | . . . Machines Sabotaged . | . . . Overloaded Fab Kills . | . . . Hacking | -11 -10 -9 --------- Run | Yrd Mat Mat Machines Accessed 8 | . 6 2 Terminals 6 | . 4 2 Fabricators . | . . . Repair Stations . | . . . Recycling Units 2 | . 2 . Scanalyzers . | . . . Garrison Access . | . . . Total Hacks 15 | . 12 3 Successful 12 | . 9 3 Failed 3 | . 3 . Catastrophic 1 | . 1 . Database Lockouts . | . . . Manual 1 | . . 1 Terminals 13 | . 10 3 Fabricators . | . . . Repair Stations . | . . . Recycling Units 2 | . 2 . Scanalyzers . | . . . Garrison Access . | . . . Terminal Hacks 10 | . 7 3 Record 2 | . 1 1 Emergency Access Points 1 | . 1 . Terminal Index 1 | . . 1 Scanalyzer Index 1 | . 1 . Alert Level 3 | . 2 1 Registered Components 1 | . 1 . Zone Layout 1 | . 1 . Fabricator Hacks . | . . . Repair Station Hacks . | . . . Recycling Unit Hacks 2 | . 2 . Report Inventory 2 | . 2 . Scanalyzer . | . . . Garrison Access Hacks . | . . . Unauthorized Hacks . | . . . Terminals . | . . . Fabricators . | . . . Repair Stations . | . . . Recycling Units . | . . . Scanalyzers . | . . . Garrison Access . | . . . Data Cores Recovered . | . . . Used . | . . . Hacking Detections 5 | . 4 1 Full Trace Events 1 | . 1 . Feedback Events . | . . . Feedback Blocked . | . . . Robot Schematics Acquired . | . . . Robots Built . | . . . Authchips . | . . . Time . | . . . Total Robot Build Rating . | . . . Part Schematics Acquired . | . . . Parts Built . | . . . Authchips . | . . . Time . | . . . Total Part Build Rating . | . . . Parts Repaired . | . . . Time . | . . . Parts Recycled . | . . . Recycled Matter . | . . . Retrieved Matter . | . . . Retrieved Components . | . . . Parts Scanalyzed . | . . . Part Schematics Acquired . | . . . Parts Damaged . | . . . Bothacking | -11 -10 -9 ------------ Run | Yrd Mat Mat Used RIF Installer . | . . . Robots Hacked . | . . . Non-combat . | . . . Combat . | . . . Robot Hacks Applied . | . . . Relay Couplers Released . | . . . Fabnet Peak Effective % . | . . . Robots Rewired . | . . . Allies Hacked . | . . . Hacks Repelled . | . . . Allies | -11 -10 -9 -------- Run | Yrd Mat Mat Total Allies . | . . . Largest Group . | . . . Highest-Rated Group . | . . . Highest-Rated Ally . | . . . Total Orders . | . . . Ally Attacks . | . . . Total Damage . | . . . Kills . | . . . Allies Corrupted . | . . . Allies Melted . | . . . Intel | -11 -10 -9 ------- Run | Yrd Mat Mat Robot Analysis Total . | . . . Derelict Logs Recovered . | . . . Drone Launches . | . . . Drone Recoveries . | . . . Exploration | -11 -10 -9 ------------- Run | Yrd Mat Mat Turns Passed 1127 | 76 543 508 Spaces Moved 692 | 48 316 328 Core 13 | 7 . 6 Treads . | . . . Legs 679 | 41 316 322 Wheels . | . . . Hover . | . . . Flight . | . . . Fastest Speed 50 | 50 120 120 Average Speed 124 | 122 121 128 Slowest Speed 200 | 190 190 200 Overloaded Moves . | . . . Propulsion Burnouts . | . . . Robots Hopped . | . . . Cave-ins Triggered . | . . . Exploration Rate (%) 25 | 3 47 27 Regions Visited 2 Branch Regions . Pre-discovered Areas . | . . . Known Exits Taken . | . . . Unknown Exits Taken 2 | 1 1 . Scrap Searched . | . . . Spaces Dug . | . . . Terrain Destroyed 54 | . 2 52 Melee . | . . . Projectile . | . . . AOE 54 | . 2 52 Terrain Rammed . | . . . Walls Destroyed . | . . . Machines Disabled . | . . . Actions | -11 -10 -9 --------- Run | Yrd Mat Mat Total 887 | 66 437 384 Wait 82 | . 61 21 Move 690 | 47 315 328 Hop . | . . . Pick Up 35 | 10 19 6 Fast Attach . | . . . Attach 16 | 6 6 4 Detach 3 | . 3 . Swap 5 | . 2 3 Drop 15 | 3 7 5 Fire 33 | . 24 9 Melee 8 | . . 8 Ram . | . . . Kick . | . . . Crush . | . . . Escape Stasis . | . . . Rewire . | . . . Trap . | . . . Miscellaneous . | . . . Route ------- -11/Scrapyard -10/Materials (discovered 2 exits: *Mat / [*Min]) -9/Materials History --------- Turn | Location | Event 2 | -11/Scrapyard | Met Revision 17 35 | -11/Scrapyard | Discovered new exit (range 15) 77 | -11/Scrapyard | Entered Materials 297 | -10/Materials | Discovered new exit (range 14) 341 | -10/Materials | Build established: Mutant 565 | -10/Materials | Discovered new exit (range 11) 620 | -10/Materials | Entered another Materials area 620 | -9/Materials | Evolved 2 slots: Utility x1, Weapon x1 926 | -9/Materials | Build established: Gunner 1113 | -9/Materials | Core integrity fell below 50% 1121 | -9/Materials | Core integrity fell below 20% 1128 | -9/Materials | Destroyed by Y-45 Defender with Heavy Assault Rifle Last Messages --------------- EMP Blaster destroyed. System corrupted by crushing effect (+2). K-01 Serf collects debris. Carbon-fiber Leg destroyed. K-01 Serf collects debris. R-06 Scavenger collects Aluminum Leg. Lgt. Assault Rifle destroyed. Sneak attack on R-06 Scavenger. System corrupted: Substantial component data lost. Knocked back. K-01 Serf collects debris. Targeting Computer destroyed. Carbon-fiber Leg destroyed. System corrupted by crushing effect (+1). System corrupted by crushing effect (+4). K-01 Serf collects debris. Critical hit (Smash). Hammer destroyed. System corrupted by crushing effect (+2). Map ----- +----------------------------------------------------+ | ????????????????? ????????????????????????????? | | ????????????????? ????????????????????????????? | | ????????????????? ????????????????????????????? | | ???????????????? ??????#?????????????????????? | | ????????????????# #????? ????????????????????? | | ????????????????# #????? ????????????????????? | | ????????????????# #????? ?????????????????????? | | ????????????????# #????? ?????????????????????? | | ????????????????# #????? ?????????????????????? | | ????????????????# #????? ?????????????????????? | | ????????????????# #????? ?????????????????????? | | ????????????????# #???##+###???????????????????? | | ??????########### #???# ????????????????????? | | ??????# # #???# #????????????????????? | | ??????# + #???# #????????????????????? | | ??????# # ! #???# #????????????????????? | | ??????# # %=#???# #????????????????????? | | ############ "## ##??#w #????????????????????? | | = %%* #### #????????????????????? | | |=! ! #????????????????????? | | % ! +????????????????????? | | " #####" # ## !%=% #????????????????????? | | " "#??## # ####! ####gb #????????????????????? | | " "#???#####??#%#####??# #????????????????????? | | "#??????????#=#??????# #????????????????????? | | T#??????????# #??????#@ #????????????????????? | | " "#??????????# #??????# #????????????????????? | | " "#??????????# #??????# #????????????????????? | | " "#??????????# ???????# Y #????????????????????? | | ##??????????# ??????? ????????????????????? | | #???????????? ??????? ???????????????????? | | #???????????? ??????? ??????????????????? | | ####???????????? ??????? ?????????????????? | | ???????????????? ??????? ###+????????????????? | | ????????????????????????## ###???????????????????? | | ?????????????????????????? ?????????????????????? | | ?????????????????????????? ?????????????????????? | | ??????????????????????????##?????????????????????? | | ?????????????????????????????????????????????????? | | ?????????????????????????????????????????????????? | | ?????????????????????????????????????????????????? | | ?????????????????????????????????????????????????? | | ?????????????????????????????????????????????????? | | ?????????????????????????????????????????????????? | | ?????????????????????????????????????????????????? | | ?????????????????????????????????????????????????? | | ?????????????????????????????????????????????????? | | ?#######?????????????????????????????????????????? | | ## #?????????????????????????????????????????? | | #?????????????????????????????????????????? | +----------------------------------------------------+ Best States ------------- Heat Dissipation 28 Energy Generation 10 Energy Capacity 250 Matter Stores 300 Matter Capacity 300 Sight Range 16 Robot Scan Range 14 Terrain Scan Density 10 Evasion (%) 55 Targeting Accuracy 5 Item Schematics ----------------- None Robot Schematics ------------------ None Fabricated ------------ Nothing Alien Tech Used ----------------- None Achievements -------------- None Challenges ------------ None Game ------ Seed HypervelocityTargetPlatform Manual? 0 Play Time 00:24:36 Cumulative 8.7 hours Start 2024.06.10 @ 01:52:41 End 2024.06.10 @ 02:17:08 Sessions 1 Manual Loads 0 Difficulty Rogue Special Mode None Game No. 23 Rogue 23 Adventurer 0 Explorer 0 Win Type - Total 0 Types 0/0/0/0/0/0/0/0/0 Lore% 2 Gallery% 13 Achievement% 10 Wizard Run 0 Options --------- Layout 1 ASCII 0 Keyboard 1 Movement Numpad Keybinds 0 Fullscreen 1 Font 32/SmallcapsGlow Map View 50x35 Zoom Use 0% Tactical HUD 0 Map Filters NONE Filters NONE Steam 0 RUN: 9500d394-b9f0-45b7-8c2c-d841e4da2cd8